[Event "*** Titled Tuesday Blitz"]
[Site "Chess.com"]
[Date "2019.10.01"]
[Round "9"]
[White "MikeSailer"]
[Black "Vojtap"]
[Result "1-0"]
[WhiteElo "2086"]
[BlackElo "2142"]
[TimeControl "180+2"]
[EndTime "15:12:36 PDT"]
[Termination "MikeSailer won on time"]

1. b4 {[%clk 0:03:01.8]} 1... e5 {[%clk 0:02:59.1]} 2. Bb2 {[%clk 0:03:01.7]}
2... d6 {[%clk 0:02:45.1]} 3. e3 {[%clk 0:03:02.3]} 3... a5 {[%clk 0:02:45.3]}
4. b5 {[%clk 0:03:03.6]} 4... Nd7 {[%clk 0:02:41.7]} 5. Nf3 {[%clk 0:03:03.4]}
5... Ngf6 {[%clk 0:02:41]} 6. Be2 {[%clk 0:02:56.3]} 6... Be7 {[%clk 0:02:41.4]}
7. O-O {[%clk 0:02:45.9]} 7... Nb6 {[%clk 0:02:40.4]} 8. c4 {[%clk 0:02:41.2]}
8... Be6 {[%clk 0:02:36.6]} 9. Qc2 {[%clk 0:02:37.5]} 9... O-O {[%clk
0:02:33.4]} 10. d4 {[%clk 0:02:25.5]} 10... e4 {[%clk 0:01:30.3]} 11. Nfd2
{[%clk 0:02:23.6]} 11... d5 {[%clk 0:01:30.6]} 12. cxd5 {[%clk 0:02:12.5]} 12...
Bxd5 {[%clk 0:01:31.1]} 13. Nc3 {[%clk 0:02:11.1]} 13... Bd6 {[%clk 0:01:24.2]}
14. Nxd5 {[%clk 0:01:52]} 14... Nbxd5 {[%clk 0:01:14.8]} 15. Nxe4 {[%clk
0:01:40.2]} 15... Nxe4 {[%clk 0:01:08.6]} 16. Qxe4 {[%clk 0:01:40.8]} 16... Re8
{[%clk 0:01:08.3]} 17. Qf3 {[%clk 0:01:27.6]} 17... Nb4 {[%clk 0:00:26]} 18. Bc4
{[%clk 0:01:04.5]} 18... Qe7 {[%clk 0:00:19.9]} 19. Qxb7 {[%clk 0:01:00.1]}
19... Qh4 {[%clk 0:00:16.9]} 20. g3 {[%clk 0:00:59]} 20... Qh3 {[%clk
0:00:15.1]} 21. Qf3 {[%clk 0:00:54.1]} 21... Rad8 {[%clk 0:00:09.5]} 22. Bxf7+
{[%clk 0:00:52.9]} 22... Kh8 {[%clk 0:00:10.8]} 23. Bxe8 {[%clk 0:00:54.4]}
23... Rxe8 {[%clk 0:00:12.7]} 24. a3 {[%clk 0:00:49.9]} 24... Nd3 {[%clk
0:00:08]} 25. Bc3 {[%clk 0:00:51.1]} 25... Re6 {[%clk 0:00:06.6]} 26. Qg2 {[%clk
0:00:50.2]} 26... Qf5 {[%clk 0:00:05.8]} 27. Qa8+ {[%clk 0:00:44.4]} 27... Bf8
{[%clk 0:00:05.3]} 28. Bxa5 {[%clk 0:00:34.4]} 28... Rh6 {[%clk 0:00:03.9]} 29.
Bb4 {[%clk 0:00:28.8]} 29... Nxb4 {[%clk 0:00:03.3]} 30. axb4 {[%clk 0:00:30.5]}
30... Kg8 {[%clk 0:00:03.8]} 31. Qg2 {[%clk 0:00:28.6]} 31... Bxb4 {[%clk
0:00:02.3]} 32. Ra8+ {[%clk 0:00:28.8]} 32... Kf7 {[%clk 0:00:02.9]} 33. Rc1
{[%clk 0:00:24.4]} 33... Bd6 {[%clk 0:00:03]} 34. b6 {[%clk 0:00:22.5]} 34...
cxb6 {[%clk 0:00:03.3]} 35. Ra7+ {[%clk 0:00:22.3]} 35... Kg8 {[%clk 0:00:03.2]}
36. Qa8+ {[%clk 0:00:21.1]} 36... Bf8 {[%clk 0:00:03.3]} 37. Rac7 {[%clk
0:00:13]} 37... Rf6 {[%clk 0:00:04]} 38. Qg2 {[%clk 0:00:12.6]} 1-0

[Event "*** Titled Tuesday Blitz"]
[Site "Chess.com"]
[Date "2019.10.01"]
[Round "9"]
[White "SCIM"]
[Black "novocane"]
[Result "1-0"]
[WhiteElo "2503"]
[BlackElo "2314"]
[TimeControl "180+2"]
[EndTime "15:12:41 PDT"]
[Termination "SCIM won on time"]

1. d4 {[%clk 0:03:01.9]} 1... Nf6 {[%clk 0:02:59.9]} 2. c4 {[%clk 0:03:02.5]}
2... e6 {[%clk 0:03:01]} 3. Nc3 {[%clk 0:03:02.9]} 3... Bb4 {[%clk 0:03:00.4]}
4. a3 {[%clk 0:03:03.9]} 4... Bxc3+ {[%clk 0:03:01.2]} 5. bxc3 {[%clk
0:03:05.8]} 5... Nc6 {[%clk 0:03:02.6]} 6. f3 {[%clk 0:03:05.4]} 6... b6 {[%clk
0:02:44.3]} 7. e4 {[%clk 0:03:04.7]} 7... e5 {[%clk 0:02:41]} 8. Nh3 {[%clk
0:02:54.3]} 8... d6 {[%clk 0:02:33]} 9. Nf2 {[%clk 0:02:54.7]} 9... Na5 {[%clk
0:02:23.5]} 10. Bd3 {[%clk 0:02:54.8]} 10... c5 {[%clk 0:02:19.2]} 11. O-O
{[%clk 0:02:50]} 11... Ba6 {[%clk 0:02:20.2]} 12. f4 {[%clk 0:02:45.7]} 12...
Nd7 {[%clk 0:02:10.6]} 13. fxe5 {[%clk 0:02:36.8]} 13... dxe5 {[%clk 0:02:09.6]}
14. Ng4 {[%clk 0:02:27.2]} 14... cxd4 {[%clk 0:01:13.6]} 15. cxd4 {[%clk
0:02:19.5]} 15... exd4 {[%clk 0:01:14.4]} 16. e5 {[%clk 0:02:08]} 16... Nc5
{[%clk 0:01:12.3]} 17. Qf3 {[%clk 0:02:02.5]} 17... Rf8 {[%clk 0:00:47.8]} 18.
e6 {[%clk 0:01:17.4]} 18... Nxe6 {[%clk 0:00:46.2]} 19. Bd2 {[%clk 0:01:13.6]}
19... Bb7 {[%clk 0:00:43.4]} 20. Qg3 {[%clk 0:01:06.5]} 20... Qc7 {[%clk
0:00:41.5]} 21. Qh4 {[%clk 0:01:02.6]} 21... Nb3 {[%clk 0:00:23.8]} 22. Bb4
{[%clk 0:01:00.7]} 22... Nbc5 {[%clk 0:00:23.9]} 23. Rae1 {[%clk 0:00:58.3]}
23... Qe7 {[%clk 0:00:22.6]} 24. Qg3 {[%clk 0:00:49.3]} 24... O-O-O {[%clk
0:00:22.7]} 25. Bxh7 {[%clk 0:00:39.7]} 25... g6 {[%clk 0:00:20.2]} 26. Nf6
{[%clk 0:00:31.2]} 26... Qc7 {[%clk 0:00:20]} 27. Qg4 {[%clk 0:00:27.6]} 27...
Kb8 {[%clk 0:00:18.6]} 28. Nd5 {[%clk 0:00:25.2]} 28... Rxd5 {[%clk 0:00:13.6]}
29. cxd5 {[%clk 0:00:27.1]} 29... Bxd5 {[%clk 0:00:14.9]} 30. Bxg6 {[%clk
0:00:22.9]} 30... Rg8 {[%clk 0:00:08.2]} 31. Rf6 {[%clk 0:00:15.8]} 31... fxg6
{[%clk 0:00:06.8]} 32. Bxc5 {[%clk 0:00:13.6]} 32... Nxc5 {[%clk 0:00:03.9]} 33.
Qg5 {[%clk 0:00:10.8]} 33... Bc6 {[%clk 0:00:02.7]} 34. Rxg6 {[%clk 0:00:07.5]}
34... Rxg6 {[%clk 0:00:03.8]} 35. Qxg6 {[%clk 0:00:09.4]} 35... Kb7 {[%clk
0:00:03.8]} 36. h4 {[%clk 0:00:09.5]} 36... d3 {[%clk 0:00:04.3]} 37. Qg5 {[%clk
0:00:10.6]} 37... Qd6 {[%clk 0:00:02.9]} 38. Rd1 {[%clk 0:00:06.6]} 38... Ne4
{[%clk 0:00:03.2]} 39. Qg7+ {[%clk 0:00:05.4]} 1-0

[Event "*** Titled Tuesday Blitz"]
[Site "Chess.com"]
[Date "2019.10.01"]
[Round "9"]
[White "PaulfromSPb"]
[Black "Vuk2000"]
[Result "0-1"]
[WhiteElo "2668"]
[BlackElo "2808"]
[TimeControl "180+2"]
[EndTime "15:12:48 PDT"]
[Termination "Vuk2000 won by checkmate"]

1. e4 {[%clk 0:03:01.9]} 1... e6 {[%clk 0:03:00.7]} 2. d4 {[%clk 0:02:55.6]}
2... d5 {[%clk 0:03:01.7]} 3. Nd2 {[%clk 0:02:56.8]} 3... Be7 {[%clk 0:03:00.6]}
4. Bd3 {[%clk 0:02:57.1]} 4... c5 {[%clk 0:03:00.4]} 5. dxc5 {[%clk 0:02:57.1]}
5... Nf6 {[%clk 0:03:00.3]} 6. Qe2 {[%clk 0:02:58.6]} 6... a5 {[%clk 0:02:53.1]}
7. Ngf3 {[%clk 0:02:58.1]} 7... O-O {[%clk 0:02:53.1]} 8. a4 {[%clk 0:02:58.5]}
8... Na6 {[%clk 0:02:53.8]} 9. e5 {[%clk 0:02:54.2]} 9... Nd7 {[%clk 0:02:54.3]}
10. Nb3 {[%clk 0:02:46.3]} 10... Ndxc5 {[%clk 0:02:36.8]} 11. Nxc5 {[%clk
0:02:46.6]} 11... Nxc5 {[%clk 0:02:37.7]} 12. Bb5 {[%clk 0:02:42.1]} 12... Bd7
{[%clk 0:02:26.9]} 13. O-O {[%clk 0:02:42.5]} 13... Qb6 {[%clk 0:02:11.1]} 14.
Be3 {[%clk 0:02:42.2]} 14... Bxb5 {[%clk 0:02:12]} 15. axb5 {[%clk 0:02:42.7]}
15... Qc7 {[%clk 0:02:12.9]} 16. Ra2 {[%clk 0:02:31.3]} 16... Rfc8 {[%clk
0:02:00.6]} 17. Rfa1 {[%clk 0:02:30.8]} 17... Ne4 {[%clk 0:01:53.5]} 18. c3
{[%clk 0:02:27]} 18... Bc5 {[%clk 0:01:47.1]} 19. Bxc5 {[%clk 0:02:12.5]} 19...
Nxc5 {[%clk 0:01:49]} 20. Nd4 {[%clk 0:02:06.4]} 20... a4 {[%clk 0:01:34.8]} 21.
f3 {[%clk 0:02:03.1]} 21... Qb6 {[%clk 0:01:28.2]} 22. Kh1 {[%clk 0:02:01.4]}
22... Rab8 {[%clk 0:00:46]} 23. h3 {[%clk 0:01:59.9]} 23... h6 {[%clk
0:00:41.7]} 24. Ra3 {[%clk 0:01:56]} 24... Rc7 {[%clk 0:00:40.8]} 25. Rf1 {[%clk
0:01:52.1]} 25... g6 {[%clk 0:00:27.5]} 26. g4 {[%clk 0:01:49]} 26... Rbc8
{[%clk 0:00:27.5]} 27. Kg2 {[%clk 0:01:48.4]} 27... Nb3 {[%clk 0:00:21.3]} 28.
Nxb3 {[%clk 0:01:48.4]} 28... axb3 {[%clk 0:00:22.5]} 29. Rxb3 {[%clk
0:01:49.4]} 29... Rc4 {[%clk 0:00:24.1]} 30. Rd1 {[%clk 0:01:46.9]} 30... R8c5
{[%clk 0:00:24.9]} 31. Qe3 {[%clk 0:01:41.1]} 31... Qa5 {[%clk 0:00:21.9]} 32.
Qxh6 {[%clk 0:01:33]} 32... Qa4 {[%clk 0:00:18.6]} 33. Qg5 {[%clk 0:00:45.8]}
33... Rc8 {[%clk 0:00:18.8]} 34. h4 {[%clk 0:00:41.4]} 34... Qxb3 {[%clk
0:00:19.2]} 35. Rd2 {[%clk 0:00:43]} 35... Qxb5 {[%clk 0:00:13.5]} 36. h5 {[%clk
0:00:44.3]} 36... Qe8 {[%clk 0:00:14.2]} 37. h6 {[%clk 0:00:37.1]} 37... Qd8
{[%clk 0:00:13.1]} 38. h7+ {[%clk 0:00:36]} 38... Kxh7 {[%clk 0:00:13.5]} 39.
Qe3 {[%clk 0:00:35.2]} 39... Kg7 {[%clk 0:00:13.9]} 40. Kg3 {[%clk 0:00:35.2]}
40... Qe7 {[%clk 0:00:14]} 41. Rh2 {[%clk 0:00:29.7]} 41... Rh8 {[%clk
0:00:14.4]} 42. Rxh8 {[%clk 0:00:23.2]} 42... Kxh8 {[%clk 0:00:16.3]} 43. Qh6+
{[%clk 0:00:24]} 43... Kg8 {[%clk 0:00:17.7]} 44. Qe3 {[%clk 0:00:24.4]} 44...
Qc5 {[%clk 0:00:16.1]} 45. Qg5 {[%clk 0:00:25]} 45... Qc7 {[%clk 0:00:15.7]} 46.
Qf6 {[%clk 0:00:25.3]} 46... d4 {[%clk 0:00:16.2]} 47. Kh4 {[%clk 0:00:26.2]}
47... dxc3 {[%clk 0:00:11.8]} 48. Kg5 {[%clk 0:00:25.7]} 48... c2 {[%clk
0:00:11.6]} 49. Kh6 {[%clk 0:00:22.2]} 49... c1=Q+ {[%clk 0:00:12.9]} 50. g5
{[%clk 0:00:24]} 50... Qh1# {[%clk 0:00:13]} 0-1

[Event "*** Titled Tuesday Blitz"]
[Site "Chess.com"]
[Date "2019.10.01"]
[Round "9"]
[White "Qvalda"]
[Black "Godzillator"]
[Result "1-0"]
[WhiteElo "2521"]
[BlackElo "2372"]
[TimeControl "180+2"]
[EndTime "15:12:54 PDT"]
[Termination "Qvalda won by resignation"]

1. d4 {[%clk 0:02:44.7]} 1... d5 {[%clk 0:02:59.5]} 2. c4 {[%clk 0:02:45.3]}
2... c6 {[%clk 0:03:00.6]} 3. Nf3 {[%clk 0:02:46.4]} 3... Nf6 {[%clk 0:03:01.8]}
4. Qb3 {[%clk 0:02:46.3]} 4... dxc4 {[%clk 0:03:00.4]} 5. Qxc4 {[%clk
0:02:46.5]} 5... Bf5 {[%clk 0:03:01.2]} 6. g3 {[%clk 0:02:45.9]} 6... e6 {[%clk
0:03:01.7]} 7. Bg2 {[%clk 0:02:46.8]} 7... Be7 {[%clk 0:03:00.2]} 8. Nc3 {[%clk
0:02:47.7]} 8... O-O {[%clk 0:03:00.6]} 9. O-O {[%clk 0:02:48.9]} 9... h6 {[%clk
0:03:00.6]} 10. Rd1 {[%clk 0:02:21.1]} 10... Ne4 {[%clk 0:02:54.5]} 11. Bf4
{[%clk 0:02:16.7]} 11... Nd7 {[%clk 0:02:51.4]} 12. Rac1 {[%clk 0:02:14.2]}
12... Nb6 {[%clk 0:02:51.4]} 13. Qb3 {[%clk 0:02:13.4]} 13... Bd6 {[%clk
0:02:40.3]} 14. Bxd6 {[%clk 0:02:05]} 14... Qxd6 {[%clk 0:02:38.7]} 15. Nh4
{[%clk 0:02:01.9]} 15... Nxc3 {[%clk 0:02:36.5]} 16. bxc3 {[%clk 0:01:46.3]}
16... Bh7 {[%clk 0:02:36.9]} 17. c4 {[%clk 0:01:47]} 17... Qe7 {[%clk
0:02:35.7]} 18. a4 {[%clk 0:01:40.7]} 18... Rad8 {[%clk 0:02:29.2]} 19. a5
{[%clk 0:01:39.6]} 19... Nc8 {[%clk 0:02:30.3]} 20. c5 {[%clk 0:01:06.2]} 20...
Qc7 {[%clk 0:02:25.3]} 21. Qb4 {[%clk 0:01:02.4]} 21... Ne7 {[%clk 0:02:21]} 22.
e3 {[%clk 0:01:00.9]} 22... Nd5 {[%clk 0:02:18]} 23. Qe1 {[%clk 0:00:57.8]}
23... g5 {[%clk 0:02:12.9]} 24. Nf3 {[%clk 0:00:58.5]} 24... Be4 {[%clk
0:02:13.8]} 25. Ne5 {[%clk 0:00:57.7]} 25... Bxg2 {[%clk 0:02:14.3]} 26. Kxg2
{[%clk 0:00:59.6]} 26... f6 {[%clk 0:02:09.2]} 27. Nc4 {[%clk 0:00:57.5]} 27...
f5 {[%clk 0:02:06.9]} 28. Ne5 {[%clk 0:00:56.3]} 28... f4 {[%clk 0:02:04.1]} 29.
exf4 {[%clk 0:00:55.8]} 29... gxf4 {[%clk 0:02:05]} 30. Qe4 {[%clk 0:00:53.7]}
30... Rf5 {[%clk 0:02:02.6]} 31. g4 {[%clk 0:00:50.6]} 31... f3+ {[%clk
0:01:54.4]} 32. Kh1 {[%clk 0:00:48.6]} 32... Rf6 {[%clk 0:01:43.8]} 33. Rg1
{[%clk 0:00:48.5]} 33... Qh7 {[%clk 0:01:40.4]} 34. Qxh7+ {[%clk 0:00:41.1]}
34... Kxh7 {[%clk 0:01:40.9]} 35. Rb1 {[%clk 0:00:42.2]} 35... Nc3 {[%clk
0:01:30.9]} 36. Rxb7+ {[%clk 0:00:42.9]} 36... Kg8 {[%clk 0:01:30.9]} 37. g5
{[%clk 0:00:41.6]} 37... hxg5 {[%clk 0:01:19.3]} 38. Rxg5+ {[%clk 0:00:43.5]}
38... Kh8 {[%clk 0:01:17]} 39. Nxc6 {[%clk 0:00:19.7]} 39... Rdf8 {[%clk
0:01:08.8]} 40. Rh5+ {[%clk 0:00:17.7]} 40... Kg8 {[%clk 0:01:09.3]} 41. Ne7+
{[%clk 0:00:18.8]} 41... Kf7 {[%clk 0:01:09.1]} 42. Rh7+ {[%clk 0:00:18.4]}
42... Ke8 {[%clk 0:01:06.8]} 43. Nc6 {[%clk 0:00:19.6]} 43... R6f7 {[%clk
0:01:04.8]} 44. Rb8+ {[%clk 0:00:14.8]} 44... Kd7 {[%clk 0:01:02]} 45. Ne5+
{[%clk 0:00:15.9]} 45... Kc7 {[%clk 0:01:03.2]} 46. Rxf7+ {[%clk 0:00:08]} 46...
Rxf7 {[%clk 0:01:03.3]} 47. Nxf7 {[%clk 0:00:09.3]} 47... Kxb8 {[%clk
0:01:03.8]} 48. h4 {[%clk 0:00:10.9]} 48... Ne4 {[%clk 0:00:57.6]} 49. h5 {[%clk
0:00:11.1]} 49... Nxf2+ {[%clk 0:00:56.9]} 50. Kg1 {[%clk 0:00:12.3]} 50... Ng4
{[%clk 0:00:56.8]} 51. h6 {[%clk 0:00:13.1]} 51... Nf6 {[%clk 0:00:58]} 52. Kf2
{[%clk 0:00:13.3]} 52... Kc7 {[%clk 0:00:58.3]} 53. Kxf3 {[%clk 0:00:14.8]}
53... Kd7 {[%clk 0:00:59.7]} 54. Kf4 {[%clk 0:00:15.7]} 54... Ke7 {[%clk
0:01:01.1]} 55. Ne5 {[%clk 0:00:15.8]} 55... Nd5+ {[%clk 0:01:01.4]} 56. Kg5
{[%clk 0:00:16.8]} 56... Nc3 {[%clk 0:00:58.8]} 57. h7 {[%clk 0:00:16.8]} 57...
Ne4+ {[%clk 0:00:59.4]} 58. Kg6 {[%clk 0:00:18]} 1-0

[Event "*** Titled Tuesday Blitz"]
[Site "Chess.com"]
[Date "2019.10.01"]
[Round "9"]
[White "dlp300"]
[Black "mortngabriel"]
[Result "0-1"]
[WhiteElo "2489"]
[BlackElo "2365"]
[TimeControl "180+2"]
[EndTime "15:13:01 PDT"]
[Termination "mortngabriel won by resignation"]

1. Nf3 {[%clk 0:03:01.7]} 1... Nf6 {[%clk 0:03:00.5]} 2. g3 {[%clk 0:03:00.3]}
2... d5 {[%clk 0:03:00.1]} 3. Bg2 {[%clk 0:03:02.2]} 3... e6 {[%clk 0:03:02]} 4.
O-O {[%clk 0:03:03.5]} 4... Be7 {[%clk 0:03:03.6]} 5. d3 {[%clk 0:03:05]} 5...
O-O {[%clk 0:03:04.7]} 6. Nbd2 {[%clk 0:03:06.9]} 6... c5 {[%clk 0:03:06.2]} 7.
e4 {[%clk 0:03:08.1]} 7... Nc6 {[%clk 0:03:05.8]} 8. Re1 {[%clk 0:03:08.9]} 8...
Qc7 {[%clk 0:03:06.4]} 9. e5 {[%clk 0:03:06.4]} 9... Nd7 {[%clk 0:03:06.9]} 10.
Qe2 {[%clk 0:03:07.6]} 10... b5 {[%clk 0:03:06.8]} 11. h4 {[%clk 0:03:08.3]}
11... Bb7 {[%clk 0:03:02.8]} 12. Nf1 {[%clk 0:03:09.1]} 12... Rfc8 {[%clk
0:03:01.9]} 13. N1h2 {[%clk 0:03:09.6]} 13... Qd8 {[%clk 0:02:57.9]} 14. Bg5
{[%clk 0:03:08.8]} 14... h6 {[%clk 0:02:51.2]} 15. Bf4 {[%clk 0:03:08.1]} 15...
Nd4 {[%clk 0:02:30]} 16. Qd2 {[%clk 0:03:00.8]} 16... Bf8 {[%clk 0:02:14.9]} 17.
h5 {[%clk 0:03:01]} 17... a5 {[%clk 0:02:02.2]} 18. g4 {[%clk 0:02:15.6]} 18...
Nxf3+ {[%clk 0:01:46.3]} 19. Bxf3 {[%clk 0:02:14.5]} 19... Be7 {[%clk
0:01:38.4]} 20. Kh1 {[%clk 0:02:14.5]} 20... Bg5 {[%clk 0:01:36.5]} 21. Re2
{[%clk 0:02:13.8]} 21... Bxf4 {[%clk 0:01:20.6]} 22. Qxf4 {[%clk 0:02:14.6]}
22... Qg5 {[%clk 0:01:22.5]} 23. Qg3 {[%clk 0:02:15.6]} 23... c4 {[%clk
0:00:52.9]} 24. d4 {[%clk 0:02:07.6]} 24... c3 {[%clk 0:00:53.9]} 25. b3 {[%clk
0:02:07.3]} 25... a4 {[%clk 0:00:40.7]} 26. Rg1 {[%clk 0:02:07.8]} 26... axb3
{[%clk 0:00:40]} 27. axb3 {[%clk 0:02:09.7]} 27... Ra2 {[%clk 0:00:39.5]} 28.
Bg2 {[%clk 0:02:10.8]} 28... Rca8 {[%clk 0:00:36.1]} 29. f4 {[%clk 0:02:12]}
29... Qe7 {[%clk 0:00:38]} 30. g5 {[%clk 0:02:12.7]} 30... hxg5 {[%clk
0:00:38.4]} 31. fxg5 {[%clk 0:02:13.4]} 31... Ra1 {[%clk 0:00:37.6]} 32. Bf1
{[%clk 0:02:03.9]} 32... b4 {[%clk 0:00:25.2]} 33. Rf2 {[%clk 0:01:54.8]} 33...
Ba6 {[%clk 0:00:17.9]} 34. Ng4 {[%clk 0:01:15.7]} 34... Qxg5 {[%clk 0:00:08.1]}
35. Qh2 {[%clk 0:01:16.1]} 35... Rxf1 {[%clk 0:00:02.8]} 36. Rfxf1 {[%clk
0:01:10.8]} 36... Bxf1 {[%clk 0:00:04.7]} 37. Nf6+ {[%clk 0:01:10.5]} 37... gxf6
{[%clk 0:00:06.6]} 38. Rxg5+ {[%clk 0:01:10.7]} 38... fxg5 {[%clk 0:00:08.5]}
39. Qg1 {[%clk 0:01:10.3]} 39... Ra1 {[%clk 0:00:09.4]} 40. Qxg5+ {[%clk
0:01:11.8]} 40... Kh7 {[%clk 0:00:09.7]} 41. h6 {[%clk 0:01:11.7]} 41... Bd3+
{[%clk 0:00:09.5]} 42. Kh2 {[%clk 0:01:12]} 42... Bg6 {[%clk 0:00:11.4]} 43. Qe7
{[%clk 0:01:12.6]} 43... Ra2 {[%clk 0:00:12.3]} 44. Qxd7 {[%clk 0:01:13.6]}
44... Rxc2+ {[%clk 0:00:13.4]} 45. Kg3 {[%clk 0:01:15.2]} 45... Kxh6 {[%clk
0:00:15]} 46. Qe7 {[%clk 0:01:15.3]} 46... Rd2 {[%clk 0:00:13.9]} 47. Qxb4
{[%clk 0:01:14.8]} 47... Rd3+ {[%clk 0:00:12.1]} 48. Kf4 {[%clk 0:01:14.6]}
48... c2 {[%clk 0:00:12.6]} 49. Qe1 {[%clk 0:01:12.5]} 49... Rxd4+ {[%clk
0:00:10.7]} 50. Kg3 {[%clk 0:01:12.2]} 50... Rd1 {[%clk 0:00:09.3]} 51. Qe3+
{[%clk 0:01:11.1]} 51... Kh7 {[%clk 0:00:10.2]} 52. Qg5 {[%clk 0:01:10.1]} 52...
c1=Q {[%clk 0:00:09.5]} 0-1

[Event "*** Titled Tuesday Blitz"]
[Site "Chess.com"]
[Date "2019.10.01"]
[Round "9"]
[White "DanielNaroditsky"]
[Black "GadimbayliA"]
[Result "1-0"]
[WhiteElo "3020"]
[BlackElo "2872"]
[TimeControl "180+2"]
[EndTime "15:13:06 PDT"]
[Termination "DanielNaroditsky won by resignation"]

1. d4 {[%clk 0:03:01.9]} 1... Nf6 {[%clk 0:03:00.8]} 2. Nc3 {[%clk 0:03:02.3]}
2... d5 {[%clk 0:03:01.3]} 3. Bf4 {[%clk 0:03:03.8]} 3... e6 {[%clk 0:03:01.7]}
4. e3 {[%clk 0:03:04.9]} 4... Bd6 {[%clk 0:03:02.9]} 5. Nf3 {[%clk 0:03:05.9]}
5... Bxf4 {[%clk 0:03:03.3]} 6. exf4 {[%clk 0:03:07.8]} 6... c5 {[%clk
0:03:05.1]} 7. dxc5 {[%clk 0:03:08.8]} 7... Qa5 {[%clk 0:03:03.2]} 8. Bd3 {[%clk
0:03:04.9]} 8... Qxc5 {[%clk 0:02:58.8]} 9. O-O {[%clk 0:03:06.2]} 9... Nc6
{[%clk 0:03:00]} 10. Re1 {[%clk 0:02:59.4]} 10... Qb4 {[%clk 0:02:46.5]} 11. Qc1
{[%clk 0:02:51.9]} 11... Bd7 {[%clk 0:02:40.8]} 12. a3 {[%clk 0:02:49.8]} 12...
Qb6 {[%clk 0:02:36.6]} 13. Ne5 {[%clk 0:02:41.4]} 13... O-O {[%clk 0:02:34.6]}
14. Qd2 {[%clk 0:02:32.9]} 14... Rfd8 {[%clk 0:02:31.8]} 15. Rab1 {[%clk
0:02:15.7]} 15... Be8 {[%clk 0:02:31.6]} 16. Ne2 {[%clk 0:02:05.5]} 16... Rac8
{[%clk 0:02:25.6]} 17. c3 {[%clk 0:01:56.5]} 17... Ne4 {[%clk 0:02:20.3]} 18.
Bxe4 {[%clk 0:01:52.5]} 18... dxe4 {[%clk 0:02:22.2]} 19. Qe3 {[%clk 0:01:49.1]}
19... Qxe3 {[%clk 0:02:17.7]} 20. fxe3 {[%clk 0:01:51]} 20... Nxe5 {[%clk
0:02:17]} 21. fxe5 {[%clk 0:01:52.9]} 21... Bb5 {[%clk 0:02:13.5]} 22. Nf4
{[%clk 0:01:39.6]} 22... Rd2 {[%clk 0:01:58.3]} 23. Red1 {[%clk 0:01:23.8]}
23... Rcd8 {[%clk 0:01:57.6]} 24. Rxd2 {[%clk 0:01:23]} 24... Rxd2 {[%clk
0:01:59.5]} 25. c4 {[%clk 0:01:21.7]} 25... Bc6 {[%clk 0:01:30.1]} 26. b4 {[%clk
0:01:22.4]} 26... Ba4 {[%clk 0:01:31.3]} 27. Rc1 {[%clk 0:01:15.5]} 27... g6
{[%clk 0:01:13.4]} 28. c5 {[%clk 0:01:06.7]} 28... Ra2 {[%clk 0:00:51]} 29. Rc3
{[%clk 0:01:05.6]} 29... Bb5 {[%clk 0:00:49.9]} 30. h4 {[%clk 0:01:04.7]} 30...
h6 {[%clk 0:00:49.6]} 31. Kh2 {[%clk 0:01:01.1]} 31... Kg7 {[%clk 0:00:44.5]}
32. Kg3 {[%clk 0:01:02.4]} 32... g5 {[%clk 0:00:42.5]} 33. hxg5 {[%clk
0:00:51.5]} 33... hxg5 {[%clk 0:00:44.4]} 34. Nh5+ {[%clk 0:00:38.4]} 34... Kg6
{[%clk 0:00:45.3]} 35. Nf6 {[%clk 0:00:40.3]} 35... Kf5 {[%clk 0:00:35.7]} 36.
Ng4 {[%clk 0:00:41.8]} 36... Bf1 {[%clk 0:00:25]} 37. Nf2 {[%clk 0:00:42.9]}
37... Kxe5 {[%clk 0:00:26]} 38. c6 {[%clk 0:00:44.5]} 38... bxc6 {[%clk
0:00:27.7]} 39. Rc5+ {[%clk 0:00:46.1]} 39... Kd6 {[%clk 0:00:19.9]} 40. Nxe4+
{[%clk 0:00:43.9]} 40... Kd7 {[%clk 0:00:20.7]} 41. Nxg5 {[%clk 0:00:38.7]}
41... Rxg2+ {[%clk 0:00:21]} 42. Kf3 {[%clk 0:00:40.1]} 42... f6 {[%clk
0:00:14.9]} 43. Ne4 {[%clk 0:00:41.6]} 43... Rg6 {[%clk 0:00:16.1]} 44. Kf2
{[%clk 0:00:26]} 44... Ba6 {[%clk 0:00:09.5]} 45. Ra5 {[%clk 0:00:26]} 45... Bb5
{[%clk 0:00:05.3]} 46. Rxa7+ {[%clk 0:00:26.8]} 46... Kd8 {[%clk 0:00:06.6]} 47.
a4 {[%clk 0:00:25.4]} 47... Bc4 {[%clk 0:00:08.1]} 48. Nd6 {[%clk 0:00:18.7]}
48... Bd5 {[%clk 0:00:08.3]} 49. e4 {[%clk 0:00:20.4]} 49... Bb3 {[%clk
0:00:08.9]} 50. b5 {[%clk 0:00:18.3]} 50... cxb5 {[%clk 0:00:08.3]} 51. axb5
{[%clk 0:00:20.2]} 51... Rh6 {[%clk 0:00:05.7]} 52. Nf7+ {[%clk 0:00:20.2]} 1-0